[Event "*** SCC Grand Prix: Titled Tuesday Blitz"]
[Site "Chess.com"]
[Date "2020.07.21"]
[Round "9"]
[White "Noam_Vitenberg"]
[Black "krzyzan94"]
[Result "1-0"]
[WhiteElo "2504"]
[BlackElo "2637"]
[TimeControl "180+1"]
[EndTime "11:46:55 PDT"]
[Termination "Noam_Vitenberg won on time"]

1. d4 {[%clk 0:03:00.9]} 1... Nf6 {[%clk 0:02:59.7]} 2. c4 {[%clk 0:03:00.7]}
2... g6 {[%clk 0:03:00.1]} 3. Nc3 {[%clk 0:03:00.4]} 3... Bg7 {[%clk 0:03:00.4]}
4. e4 {[%clk 0:03:00.5]} 4... d6 {[%clk 0:03:00.9]} 5. Nf3 {[%clk 0:03:00.6]}
5... O-O {[%clk 0:03:01.3]} 6. Be2 {[%clk 0:03:00.7]} 6... e5 {[%clk 0:03:01.7]}
7. Be3 {[%clk 0:03:00.8]} 7... Ng4 {[%clk 0:02:52.4]} 8. Bg5 {[%clk 0:03:00.6]}
8... f6 {[%clk 0:02:52.6]} 9. Bc1 {[%clk 0:03:01]} 9... f5 {[%clk 0:02:51.7]}
10. h3 {[%clk 0:02:57.2]} 10... exd4 {[%clk 0:02:41.9]} 11. Nxd4 {[%clk
0:02:47.7]} 11... Nxf2 {[%clk 0:02:35.7]} 12. Kxf2 {[%clk 0:02:47]} 12... fxe4+
{[%clk 0:02:36]} 13. Kg1 {[%clk 0:02:41.9]} 13... Qf6 {[%clk 0:02:29.4]} 14. Be3
{[%clk 0:02:40]} 14... Qe5 {[%clk 0:02:06.5]} 15. Ndb5 {[%clk 0:02:19]} 15... c6
{[%clk 0:00:47.3]} 16. Nc7 {[%clk 0:02:11.3]} 16... Qg3 {[%clk 0:00:46.5]} 17.
Qd2 {[%clk 0:01:46.3]} 17... Bh6 {[%clk 0:00:35.4]} 18. Bxh6 {[%clk 0:01:38.5]}
18... Rf2 {[%clk 0:00:34.8]} 19. Rh2 {[%clk 0:01:33.9]} 19... Bxh3 {[%clk
0:00:33.9]} 20. Qg5 {[%clk 0:01:20.1]} 20... Rxg2+ {[%clk 0:00:03.5]} 21. Rxg2
{[%clk 0:01:17.6]} 1-0

[Event "*** SCC Grand Prix: Titled Tuesday Blitz"]
[Site "Chess.com"]
[Date "2020.07.21"]
[Round "9"]
[White "ehrenfeld"]
[Black "margarita_2703"]
[Result "1-0"]
[WhiteElo "2516"]
[BlackElo "2389"]
[TimeControl "180+1"]
[EndTime "11:46:56 PDT"]
[Termination "ehrenfeld won by resignation"]

1. e4 {[%clk 0:03:00.9]} 1... Nf6 {[%clk 0:02:50.6]} 2. Nc3 {[%clk 0:02:59.2]}
2... e5 {[%clk 0:02:50.3]} 3. f4 {[%clk 0:02:58.5]} 3... d5 {[%clk 0:02:49.8]}
4. fxe5 {[%clk 0:02:58.5]} 4... Nxe4 {[%clk 0:02:49.9]} 5. Qf3 {[%clk 0:02:59]}
5... Nxc3 {[%clk 0:02:47.8]} 6. bxc3 {[%clk 0:02:59.2]} 6... Be7 {[%clk
0:02:38.8]} 7. d4 {[%clk 0:02:58.8]} 7... c5 {[%clk 0:02:37.3]} 8. Bd3 {[%clk
0:02:55.2]} 8... h5 {[%clk 0:02:36.5]} 9. Ne2 {[%clk 0:02:48]} 9... Bg4 {[%clk
0:02:34.3]} 10. Qf2 {[%clk 0:02:42.8]} 10... Nc6 {[%clk 0:02:33.9]} 11. O-O
{[%clk 0:02:40.5]} 11... O-O {[%clk 0:02:31.3]} 12. Be3 {[%clk 0:02:29.3]} 12...
c4 {[%clk 0:02:27.8]} 13. Bf5 {[%clk 0:02:28.6]} 13... Bxf5 {[%clk 0:02:27.6]}
14. Qxf5 {[%clk 0:02:28.1]} 14... g6 {[%clk 0:02:27.4]} 15. Qf3 {[%clk
0:02:27.6]} 15... Bg5 {[%clk 0:02:25.4]} 16. Bxg5 {[%clk 0:02:26.7]} 16... Qxg5
{[%clk 0:02:24.8]} 17. Nf4 {[%clk 0:02:24.8]} 17... Ne7 {[%clk 0:02:14]} 18.
Rab1 {[%clk 0:02:24.4]} 18... b6 {[%clk 0:02:12.9]} 19. Nxd5 {[%clk 0:02:15.3]}
19... Nxd5 {[%clk 0:02:11.6]} 20. Qxd5 {[%clk 0:02:15.1]} 20... Qe3+ {[%clk
0:02:11.3]} 21. Kh1 {[%clk 0:02:14.9]} 21... Qxc3 {[%clk 0:02:10.8]} 22. Rxf7
{[%clk 0:01:36.6]} 22... Rxf7 {[%clk 0:02:02.1]} 23. Qxa8+ {[%clk 0:01:36.4]}
23... Kg7 {[%clk 0:02:02.3]} 24. Qe4 {[%clk 0:01:36.5]} 24... Rf2 {[%clk
0:01:28.5]} 25. e6 {[%clk 0:00:29.9]} 25... Qxc2 {[%clk 0:01:25.7]} 26. Qe5+
{[%clk 0:00:29.6]} 26... Kg8 {[%clk 0:01:21.3]} 27. Re1 {[%clk 0:00:25.8]} 27...
Rxg2 {[%clk 0:01:15.1]} 28. e7 {[%clk 0:00:25.1]} 1-0

[Event "*** SCC Grand Prix: Titled Tuesday Blitz"]
[Site "Chess.com"]
[Date "2020.07.21"]
[Round "9"]
[White "Onegust"]
[Black "Agibileg"]
[Result "0-1"]
[WhiteElo "2560"]
[BlackElo "2419"]
[TimeControl "180+1"]
[EndTime "11:46:59 PDT"]
[Termination "Agibileg won by resignation"]

1. d4 {[%clk 0:03:00.9]} 1... Nf6 {[%clk 0:02:59]} 2. Nf3 {[%clk 0:03:00.4]}
2... c5 {[%clk 0:02:59.6]} 3. d5 {[%clk 0:02:59.1]} 3... e6 {[%clk 0:02:58.6]}
4. c4 {[%clk 0:02:58.8]} 4... exd5 {[%clk 0:02:59]} 5. cxd5 {[%clk 0:02:59.7]}
5... d6 {[%clk 0:02:59.5]} 6. Nc3 {[%clk 0:02:59.3]} 6... g6 {[%clk 0:02:59.6]}
7. e4 {[%clk 0:02:59.4]} 7... Bg7 {[%clk 0:03:00.2]} 8. Bd3 {[%clk 0:02:59.6]}
8... O-O {[%clk 0:03:00.2]} 9. O-O {[%clk 0:02:59.6]} 9... Bg4 {[%clk
0:03:00.7]} 10. h3 {[%clk 0:02:59.3]} 10... Bxf3 {[%clk 0:03:01.2]} 11. Qxf3
{[%clk 0:03:00.2]} 11... a6 {[%clk 0:03:02.1]} 12. a4 {[%clk 0:02:59.2]} 12...
Nbd7 {[%clk 0:03:02.4]} 13. Bf4 {[%clk 0:02:54.1]} 13... Ne8 {[%clk 0:03:01.6]}
14. Bc2 {[%clk 0:02:40.5]} 14... Rb8 {[%clk 0:03:00.9]} 15. a5 {[%clk 0:02:38]}
15... b5 {[%clk 0:02:57.3]} 16. Rfe1 {[%clk 0:02:25.6]} 16... Ne5 {[%clk
0:02:55.3]} 17. Bxe5 {[%clk 0:02:22.6]} 17... Bxe5 {[%clk 0:02:54.8]} 18. Qe2
{[%clk 0:02:03.7]} 18... Qf6 {[%clk 0:02:48.5]} 19. Nd1 {[%clk 0:01:26.6]} 19...
Nc7 {[%clk 0:02:39.1]} 20. Rb1 {[%clk 0:01:21]} 20... Rfe8 {[%clk 0:02:38.2]}
21. Qd3 {[%clk 0:01:15.3]} 21... c4 {[%clk 0:02:31]} 22. Qd2 {[%clk 0:01:10.7]}
22... b4 {[%clk 0:02:28.9]} 23. Ne3 {[%clk 0:01:08.3]} 23... c3 {[%clk
0:02:17.3]} 24. Qe2 {[%clk 0:01:08.1]} 24... cxb2 {[%clk 0:02:14.8]} 25. Ng4
{[%clk 0:01:07.6]} 25... Qg7 {[%clk 0:02:14.4]} 26. Nxe5 {[%clk 0:01:07.5]}
26... Qxe5 {[%clk 0:02:14.2]} 27. Bd3 {[%clk 0:01:06.8]} 27... b3 {[%clk
0:02:06.8]} 28. Rxb2 {[%clk 0:01:06.2]} 28... Qd4 {[%clk 0:01:59.9]} 29. Reb1
{[%clk 0:01:01.1]} 29... Nxd5 {[%clk 0:01:59.3]} 30. Rxb3 {[%clk 0:00:54.7]}
30... Nc3 {[%clk 0:01:56.7]} 31. Qb2 {[%clk 0:00:38.8]} 31... Rxb3 {[%clk
0:01:49.1]} 32. Qxb3 {[%clk 0:00:38.7]} 32... Nxb1 {[%clk 0:01:50]} 33. Qxb1
{[%clk 0:00:39.1]} 33... Re5 {[%clk 0:01:47]} 34. Bxa6 {[%clk 0:00:38.2]} 34...
Rxa5 {[%clk 0:01:45]} 35. Be2 {[%clk 0:00:30.1]} 35... Ra1 {[%clk 0:01:44]} 0-1

[Event "*** SCC Grand Prix: Titled Tuesday Blitz"]
[Site "Chess.com"]
[Date "2020.07.21"]
[Round "9"]
[White "Bayernbk"]
[Black "theblitzchamp"]
[Result "1-0"]
[WhiteElo "2538"]
[BlackElo "2656"]
[TimeControl "180+1"]
[EndTime "11:47:02 PDT"]
[Termination "Bayernbk won by resignation"]

1. e4 {[%clk 0:02:59.7]} 1... c6 {[%clk 0:02:59.8]} 2. Nf3 {[%clk 0:02:57.8]}
2... d5 {[%clk 0:02:59.6]} 3. exd5 {[%clk 0:02:58.4]} 3... cxd5 {[%clk
0:02:59.8]} 4. Ne5 {[%clk 0:02:58.7]} 4... Nc6 {[%clk 0:02:56.8]} 5. d4 {[%clk
0:02:59.2]} 5... Nf6 {[%clk 0:02:45.9]} 6. Bb5 {[%clk 0:02:58.1]} 6... Bd7
{[%clk 0:02:46.1]} 7. Nxd7 {[%clk 0:02:58.2]} 7... Qxd7 {[%clk 0:02:47]} 8. c3
{[%clk 0:02:58.6]} 8... e6 {[%clk 0:02:44.3]} 9. Nd2 {[%clk 0:02:58.7]} 9... Bd6
{[%clk 0:02:44.8]} 10. O-O {[%clk 0:02:58.9]} 10... O-O {[%clk 0:02:45.3]} 11.
Re1 {[%clk 0:02:58.2]} 11... a6 {[%clk 0:02:38.5]} 12. Bd3 {[%clk 0:02:58.1]}
12... e5 {[%clk 0:02:38.4]} 13. dxe5 {[%clk 0:02:58.4]} 13... Nxe5 {[%clk
0:02:39.3]} 14. Nf3 {[%clk 0:02:58.5]} 14... Rfe8 {[%clk 0:02:32.9]} 15. Bg5
{[%clk 0:02:56.6]} 15... Nxd3 {[%clk 0:02:04.8]} 16. Qxd3 {[%clk 0:02:54.6]}
16... Ne4 {[%clk 0:02:04.1]} 17. Bh4 {[%clk 0:02:54.9]} 17... Qf5 {[%clk
0:01:46.1]} 18. Rad1 {[%clk 0:02:50.3]} 18... g5 {[%clk 0:01:05.3]} 19. Bxg5
{[%clk 0:02:22.1]} 19... f6 {[%clk 0:00:45.2]} 20. Bh4 {[%clk 0:02:14.6]} 20...
Rad8 {[%clk 0:00:45.1]} 21. Bg3 {[%clk 0:02:13.9]} 21... Bc5 {[%clk 0:00:43.6]}
22. Nd4 {[%clk 0:02:08.1]} 22... Qg6 {[%clk 0:00:40.8]} 23. Qf3 {[%clk
0:02:04.8]} 23... h5 {[%clk 0:00:35.4]} 24. Qf5 {[%clk 0:01:58]} 24... Qh6
{[%clk 0:00:21.2]} 25. Ne6 {[%clk 0:01:40.6]} 25... Nxg3 {[%clk 0:00:14.5]} 26.
hxg3 {[%clk 0:01:35.2]} 26... Rd7 {[%clk 0:00:12.5]} 27. Nxc5 {[%clk 0:01:31.4]}
27... Rde7 {[%clk 0:00:13]} 28. Qxd5+ {[%clk 0:01:29.4]} 28... Kh8 {[%clk
0:00:13]} 29. Rxe7 {[%clk 0:01:28.4]} 29... Rxe7 {[%clk 0:00:13.3]} 30. Qd8+
{[%clk 0:01:28.6]} 30... Re8 {[%clk 0:00:07.5]} 31. Qxe8+ {[%clk 0:01:28.5]} 1-0

[Event "*** SCC Grand Prix: Titled Tuesday Blitz"]
[Site "Chess.com"]
[Date "2020.07.21"]
[Round "9"]
[White "Oglob71"]
[Black "jb2mix"]
[Result "0-1"]
[WhiteElo "2520"]
[BlackElo "2678"]
[TimeControl "180+1"]
[EndTime "11:47:10 PDT"]
[Termination "jb2mix won by resignation"]

1. d4 {[%clk 0:03:00.9]} 1... Nf6 {[%clk 0:02:59.2]} 2. Nf3 {[%clk 0:03:00.2]}
2... g6 {[%clk 0:02:59]} 3. c4 {[%clk 0:03:00.7]} 3... Bg7 {[%clk 0:02:59.9]} 4.
Nc3 {[%clk 0:03:00.8]} 4... O-O {[%clk 0:03:00.8]} 5. Bg5 {[%clk 0:03:01.2]}
5... d6 {[%clk 0:03:01.7]} 6. e3 {[%clk 0:03:01.3]} 6... Na6 {[%clk 0:03:02.3]}
7. h3 {[%clk 0:03:01]} 7... c5 {[%clk 0:03:03.2]} 8. d5 {[%clk 0:03:00.7]} 8...
Nc7 {[%clk 0:03:03.7]} 9. a4 {[%clk 0:03:00.5]} 9... Rb8 {[%clk 0:03:02.4]} 10.
Bd3 {[%clk 0:02:58.6]} 10... a6 {[%clk 0:03:03.3]} 11. a5 {[%clk 0:02:58.4]}
11... b5 {[%clk 0:03:03.8]} 12. axb6 {[%clk 0:02:58.9]} 12... Rxb6 {[%clk
0:03:04.4]} 13. Qc2 {[%clk 0:02:59.6]} 13... Bd7 {[%clk 0:03:04.7]} 14. O-O
{[%clk 0:02:58.9]} 14... Qb8 {[%clk 0:03:05.2]} 15. Ra2 {[%clk 0:02:58.4]} 15...
Qb7 {[%clk 0:03:05.7]} 16. Nd2 {[%clk 0:02:55.7]} 16... Rb8 {[%clk 0:03:05.9]}
17. b3 {[%clk 0:02:55.8]} 17... e6 {[%clk 0:03:03.5]} 18. e4 {[%clk 0:02:54.6]}
18... exd5 {[%clk 0:03:00.4]} 19. exd5 {[%clk 0:02:54.8]} 19... h6 {[%clk
0:02:48.8]} 20. Bf4 {[%clk 0:02:51.2]} 20... Nh5 {[%clk 0:02:49]} 21. Bh2 {[%clk
0:02:50.8]} 21... Rxb3 {[%clk 0:02:42]} 22. Nxb3 {[%clk 0:02:49.1]} 22... Qxb3
{[%clk 0:02:42.9]} 23. Ne4 {[%clk 0:02:46.2]} 23... Bf5 {[%clk 0:02:28.1]} 24.
Bxd6 {[%clk 0:02:40.4]} 24... Qxc2 {[%clk 0:02:17]} 25. Rxc2 {[%clk 0:02:36.4]}
25... Rc8 {[%clk 0:02:17.9]} 26. g4 {[%clk 0:02:21.7]} 26... Bxe4 {[%clk
0:02:11.4]} 27. Bxe4 {[%clk 0:02:21.9]} 27... Ne8 {[%clk 0:02:12.3]} 28. Bxc5
{[%clk 0:02:13.3]} 28... Nhf6 {[%clk 0:02:12.6]} 29. d6 {[%clk 0:02:07.1]} 29...
Rxc5 {[%clk 0:02:09.4]} 30. Rd1 {[%clk 0:02:01]} 30... Nxd6 {[%clk 0:02:08.2]}
31. Rxd6 {[%clk 0:02:00]} 31... Nxe4 {[%clk 0:02:08.7]} 32. Rxa6 {[%clk
0:01:59.7]} 32... Bd4 {[%clk 0:02:00.9]} 33. Ra4 {[%clk 0:01:52.8]} 33... h5
{[%clk 0:01:41]} 34. Kg2 {[%clk 0:01:52.8]} 34... h4 {[%clk 0:01:38.1]} 35. Ra8+
{[%clk 0:01:43.9]} 35... Kg7 {[%clk 0:01:38]} 36. Rd8 {[%clk 0:01:44.4]} 36...
Bf6 {[%clk 0:01:31.2]} 37. Rd5 {[%clk 0:01:42.5]} 37... Rc6 {[%clk 0:01:22.5]}
38. f3 {[%clk 0:01:33.3]} 38... Nc3 {[%clk 0:01:19.5]} 39. Rd3 {[%clk
0:01:22.7]} 39... Rxc4 {[%clk 0:01:19.1]} 40. g5 {[%clk 0:01:23]} 40... Be5
{[%clk 0:01:16.5]} 41. Re3 {[%clk 0:01:05.5]} 41... Nd5 {[%clk 0:01:14.4]} 42.
Ree2 {[%clk 0:00:56]} 42... Rxc2 {[%clk 0:01:14.2]} 43. Rxc2 {[%clk 0:00:54.5]}
43... Ne3+ {[%clk 0:01:14.5]} 44. Kf2 {[%clk 0:00:55.1]} 44... Nxc2 {[%clk
0:01:15.4]} 0-1

[Event "*** SCC Grand Prix: Titled Tuesday Blitz"]
[Site "Chess.com"]
[Date "2020.07.21"]
[Round "9"]
[White "pastouche06"]
[Black "KaterynaLagno"]
[Result "0-1"]
[WhiteElo "2524"]
[BlackElo "2720"]
[TimeControl "180+1"]
[EndTime "11:47:11 PDT"]
[Termination "KaterynaLagno won by resignation"]

1. d4 {[%clk 0:03:00.9]} 1... Nf6 {[%clk 0:02:59.3]} 2. c4 {[%clk 0:03:00.9]}
2... g6 {[%clk 0:02:59.6]} 3. Nc3 {[%clk 0:03:01.4]} 3... d5 {[%clk 0:03:00.2]}
4. cxd5 {[%clk 0:03:01.3]} 4... Nxd5 {[%clk 0:03:01.1]} 5. e4 {[%clk 0:03:01.9]}
5... Nxc3 {[%clk 0:03:01.8]} 6. bxc3 {[%clk 0:03:02.8]} 6... Bg7 {[%clk
0:03:02.5]} 7. Be3 {[%clk 0:02:59.7]} 7... O-O {[%clk 0:03:01.4]} 8. Nf3 {[%clk
0:03:00]} 8... c5 {[%clk 0:03:01.4]} 9. Qd2 {[%clk 0:02:50.8]} 9... Qa5 {[%clk
0:03:02]} 10. Rc1 {[%clk 0:02:50.3]} 10... Rd8 {[%clk 0:03:02]} 11. d5 {[%clk
0:02:46.8]} 11... e6 {[%clk 0:03:02]} 12. c4 {[%clk 0:02:36.6]} 12... Qxd2+
{[%clk 0:02:46.2]} 13. Nxd2 {[%clk 0:02:37.5]} 13... Na6 {[%clk 0:02:38.2]} 14.
Be2 {[%clk 0:02:21.6]} 14... f5 {[%clk 0:02:31.8]} 15. exf5 {[%clk 0:02:14.5]}
15... exd5 {[%clk 0:02:29.1]} 16. cxd5 {[%clk 0:02:15.4]} 16... Bxf5 {[%clk
0:02:29.2]} 17. Bxa6 {[%clk 0:02:04.1]} 17... bxa6 {[%clk 0:02:30.1]} 18. O-O
{[%clk 0:01:39.8]} 18... Rxd5 {[%clk 0:02:27.3]} 19. Rxc5 {[%clk 0:01:37.8]}
19... Rad8 {[%clk 0:02:19.2]} 20. Rxd5 {[%clk 0:01:32]} 20... Rxd5 {[%clk
0:02:18.4]} 21. Nb3 {[%clk 0:01:31.2]} 21... a5 {[%clk 0:01:59.2]} 22. Bxa7
{[%clk 0:01:13.8]} 22... a4 {[%clk 0:01:57.9]} 23. Nc1 {[%clk 0:01:14.1]} 23...
a3 {[%clk 0:01:52.3]} 24. Be3 {[%clk 0:01:12.7]} 24... Bb2 {[%clk 0:01:41.6]}
25. h3 {[%clk 0:01:03]} 25... Bc2 {[%clk 0:01:22.5]} 26. Re1 {[%clk 0:00:52.4]}
26... Kf7 {[%clk 0:01:11.9]} 27. g4 {[%clk 0:00:46.7]} 27... Bc3 {[%clk
0:01:08.9]} 28. Re2 {[%clk 0:00:45]} 28... Bd1 {[%clk 0:01:08.1]} 29. Kf1 {[%clk
0:00:36]} 29... Rb5 {[%clk 0:00:57.2]} 30. Nb3 {[%clk 0:00:34.7]} 30... Bxe2+
{[%clk 0:00:54.7]} 31. Kxe2 {[%clk 0:00:34.2]} 31... Rxb3 {[%clk 0:00:55.4]} 32.
axb3 {[%clk 0:00:34.2]} 32... a2 {[%clk 0:00:56]} 0-1

[Event "*** SCC Grand Prix: Titled Tuesday Blitz"]
[Site "Chess.com"]
[Date "2020.07.21"]
[Round "9"]
[White "VladimirBugayev"]
[Black "jamalm2"]
[Result "1-0"]
[WhiteElo "2151"]
[BlackElo "1861"]
[TimeControl "180+1"]
[EndTime "11:47:15 PDT"]
[Termination "VladimirBugayev won by checkmate"]

1. e4 {[%clk 0:03:00.9]} 1... c5 {[%clk 0:02:58.8]} 2. a3 {[%clk 0:03:00.5]}
2... e6 {[%clk 0:02:57.6]} 3. b4 {[%clk 0:03:00.2]} 3... cxb4 {[%clk 0:02:56.3]}
4. axb4 {[%clk 0:03:00.4]} 4... Bxb4 {[%clk 0:02:55.4]} 5. Bb2 {[%clk
0:03:00.9]} 5... Nf6 {[%clk 0:02:52.6]} 6. e5 {[%clk 0:03:00.7]} 6... Nd5 {[%clk
0:02:49.5]} 7. c4 {[%clk 0:03:00.7]} 7... Nb6 {[%clk 0:02:45.4]} 8. Ra3 {[%clk
0:03:00]} 8... Bxa3 {[%clk 0:02:43.8]} 9. Bxa3 {[%clk 0:03:00]} 9... Nc6 {[%clk
0:02:40.2]} 10. Bd6 {[%clk 0:02:59.9]} 10... Qh4 {[%clk 0:02:20.2]} 11. Nf3
{[%clk 0:02:53.5]} 11... Qe4+ {[%clk 0:02:18.6]} 12. Be2 {[%clk 0:02:44.7]}
12... Nd4 {[%clk 0:01:53.7]} 13. Nc3 {[%clk 0:02:10.1]} 13... Nxf3+ {[%clk
0:01:53]} 14. gxf3 {[%clk 0:02:09.9]} 14... Qh4 {[%clk 0:01:51.4]} 15. Rg1
{[%clk 0:01:46.5]} 15... Nxc4 {[%clk 0:01:39]} 16. Rg4 {[%clk 0:01:42.4]} 16...
Qxh2 {[%clk 0:01:36.2]} 17. Bxc4 {[%clk 0:01:35.5]} 17... Qh1+ {[%clk
0:01:32.4]} 18. Bf1 {[%clk 0:01:22.5]} 18... b6 {[%clk 0:01:31.8]} 19. Qe2
{[%clk 0:01:02.5]} 19... Bb7 {[%clk 0:01:29.3]} 20. Ne4 {[%clk 0:01:03]} 20...
O-O-O {[%clk 0:01:13.1]} 21. Qc4+ {[%clk 0:00:58.5]} 21... Bc6 {[%clk
0:01:11.6]} 22. Qa6+ {[%clk 0:00:58.4]} 22... Bb7 {[%clk 0:01:09.8]} 23. Qxa7
{[%clk 0:00:58.9]} 23... Bxe4 {[%clk 0:00:19.3]} 24. Qc7# {[%clk 0:00:55.4]} 1-0

[Event "*** SCC Grand Prix: Titled Tuesday Blitz"]
[Site "Chess.com"]
[Date "2020.07.21"]
[Round "9"]
[White "Paladin61"]
[Black "Gabix_94"]
[Result "0-1"]
[WhiteElo "2645"]
[BlackElo "2886"]
[TimeControl "180+1"]
[EndTime "11:47:21 PDT"]
[Termination "Gabix_94 won on time"]

1. b3 {[%clk 0:02:59.4]} 1... e5 {[%clk 0:02:57.9]} 2. Bb2 {[%clk 0:02:59.7]}
2... Nc6 {[%clk 0:02:58.5]} 3. e3 {[%clk 0:02:59.8]} 3... a6 {[%clk 0:02:59.1]}
4. c4 {[%clk 0:02:58.3]} 4... Nf6 {[%clk 0:02:58.4]} 5. a3 {[%clk 0:02:56.6]}
5... d5 {[%clk 0:02:56.6]} 6. cxd5 {[%clk 0:02:57.5]} 6... Nxd5 {[%clk
0:02:57.5]} 7. Qc2 {[%clk 0:02:57.6]} 7... g6 {[%clk 0:02:55.1]} 8. Nf3 {[%clk
0:02:52.6]} 8... Bg7 {[%clk 0:02:54.3]} 9. d3 {[%clk 0:02:48.2]} 9... O-O {[%clk
0:02:54.2]} 10. Be2 {[%clk 0:02:40.8]} 10... h6 {[%clk 0:02:49.2]} 11. Nbd2
{[%clk 0:02:37.4]} 11... Be6 {[%clk 0:02:49.2]} 12. O-O {[%clk 0:02:23.7]} 12...
f5 {[%clk 0:02:45.9]} 13. Nc4 {[%clk 0:02:06.9]} 13... e4 {[%clk 0:02:32.8]} 14.
dxe4 {[%clk 0:02:00.1]} 14... fxe4 {[%clk 0:02:33.7]} 15. Nfd2 {[%clk
0:01:39.1]} 15... Bf5 {[%clk 0:02:26.9]} 16. Bxg7 {[%clk 0:01:33.8]} 16... Kxg7
{[%clk 0:02:27.8]} 17. Nxe4 {[%clk 0:01:32.7]} 17... Kh7 {[%clk 0:02:24.3]} 18.
Rad1 {[%clk 0:01:23.4]} 18... Qe7 {[%clk 0:02:18.4]} 19. Bd3 {[%clk 0:01:16.7]}
19... Rad8 {[%clk 0:02:17.3]} 20. Ng3 {[%clk 0:01:11.6]} 20... Bxd3 {[%clk
0:02:15.4]} 21. Rxd3 {[%clk 0:01:11.5]} 21... Ndb4 {[%clk 0:02:11.5]} 22. axb4
{[%clk 0:01:01.6]} 22... Nxb4 {[%clk 0:02:12.4]} 23. Qb1 {[%clk 0:00:47.1]}
23... Rxd3 {[%clk 0:02:09.3]} 24. Ne2 {[%clk 0:00:44.6]} 24... b5 {[%clk
0:02:08.4]} 25. Na5 {[%clk 0:00:38.7]} 25... c5 {[%clk 0:02:05.9]} 26. Nf4
{[%clk 0:00:37.1]} 26... Rd6 {[%clk 0:02:05.8]} 27. g3 {[%clk 0:00:33.6]} 27...
Nd5 {[%clk 0:01:59.8]} 28. Nxd5 {[%clk 0:00:26.9]} 28... Rxd5 {[%clk 0:02:00.7]}
29. h4 {[%clk 0:00:23.1]} 29... h5 {[%clk 0:01:58.7]} 30. e4 {[%clk 0:00:21.8]}
30... Rd2 {[%clk 0:01:57.6]} 31. Qe1 {[%clk 0:00:16.7]} 31... Ra2 {[%clk
0:01:56.7]} 32. e5 {[%clk 0:00:12.2]} 32... Rf5 {[%clk 0:01:51.6]} 33. Nc6
{[%clk 0:00:09.8]} 33... Qe6 {[%clk 0:01:50.6]} 34. Qe4 {[%clk 0:00:09.8]} 34...
Rd2 {[%clk 0:01:43.1]} 35. f4 {[%clk 0:00:07.3]} 35... Qxb3 {[%clk 0:01:43]} 0-1

[Event "*** SCC Grand Prix: Titled Tuesday Blitz"]
[Site "Chess.com"]
[Date "2020.07.21"]
[Round "9"]
[White "grunbergmihai"]
[Black "ambaixador"]
[Result "1-0"]
[WhiteElo "2436"]
[BlackElo "2323"]
[TimeControl "180+1"]
[EndTime "11:47:23 PDT"]
[Termination "grunbergmihai won by checkmate"]

1. e4 {[%clk 0:03:00.9]} 1... c6 {[%clk 0:02:58.7]} 2. Nf3 {[%clk 0:02:59]} 2...
d5 {[%clk 0:02:59.6]} 3. Nc3 {[%clk 0:02:58.6]} 3... dxe4 {[%clk 0:03:00.5]} 4.
Nxe4 {[%clk 0:02:58.6]} 4... Nf6 {[%clk 0:02:59.2]} 5. Ng3 {[%clk 0:02:58.4]}
5... Bg4 {[%clk 0:02:58.2]} 6. Bc4 {[%clk 0:02:57.9]} 6... e6 {[%clk 0:02:58.3]}
7. d3 {[%clk 0:02:56.3]} 7... Nbd7 {[%clk 0:02:58.4]} 8. Bb3 {[%clk 0:02:55.4]}
8... Be7 {[%clk 0:02:56.2]} 9. h3 {[%clk 0:02:55.1]} 9... Bxf3 {[%clk
0:02:56.1]} 10. Qxf3 {[%clk 0:02:55.2]} 10... O-O {[%clk 0:02:57]} 11. O-O
{[%clk 0:02:54.9]} 11... Nc5 {[%clk 0:02:53.2]} 12. Ne4 {[%clk 0:02:49.9]} 12...
Nxb3 {[%clk 0:02:48.9]} 13. axb3 {[%clk 0:02:50]} 13... Qd5 {[%clk 0:02:33.9]}
14. Be3 {[%clk 0:02:47.7]} 14... a6 {[%clk 0:02:30.7]} 15. Rfd1 {[%clk
0:02:37.8]} 15... Rfd8 {[%clk 0:02:26.9]} 16. h4 {[%clk 0:02:24]} 16... Qe5
{[%clk 0:01:55.9]} 17. g3 {[%clk 0:02:18.5]} 17... Nxe4 {[%clk 0:01:44.7]} 18.
Qxe4 {[%clk 0:02:14.6]} 18... Qxb2 {[%clk 0:01:44.1]} 19. Qc4 {[%clk 0:02:02.4]}
19... Qe5 {[%clk 0:01:38.7]} 20. d4 {[%clk 0:01:57.1]} 20... Qd5 {[%clk
0:01:31.3]} 21. Qe2 {[%clk 0:01:57]} 21... Qe4 {[%clk 0:01:26.8]} 22. Rd3 {[%clk
0:01:53.8]} 22... Bf6 {[%clk 0:01:22]} 23. Rad1 {[%clk 0:01:53.2]} 23... g6
{[%clk 0:01:19.5]} 24. h5 {[%clk 0:01:51.8]} 24... Qf5 {[%clk 0:01:17.5]} 25. g4
{[%clk 0:01:47]} 25... Qb5 {[%clk 0:00:56.5]} 26. c4 {[%clk 0:01:43.1]} 26...
Qb4 {[%clk 0:00:56]} 27. Kg2 {[%clk 0:01:36.6]} 27... g5 {[%clk 0:00:50.2]} 28.
Qf3 {[%clk 0:01:34.8]} 28... Qe7 {[%clk 0:00:49.2]} 29. h6 {[%clk 0:01:33.1]}
29... a5 {[%clk 0:00:45.3]} 30. d5 {[%clk 0:01:28.3]} 30... exd5 {[%clk
0:00:44.3]} 31. cxd5 {[%clk 0:01:28.3]} 31... cxd5 {[%clk 0:00:32.9]} 32. Rxd5
{[%clk 0:01:28.1]} 32... Rxd5 {[%clk 0:00:31.4]} 33. Rxd5 {[%clk 0:01:27.7]}
33... Be5 {[%clk 0:00:20.2]} 34. Qf5 {[%clk 0:01:12.7]} 34... f6 {[%clk
0:00:20.1]} 35. Rd7 {[%clk 0:01:11.2]} 35... Qf8 {[%clk 0:00:17.3]} 36. Qxh7#
{[%clk 0:01:10.6]} 1-0